Cogmind - Beta 10.2 @@@ ROGUE MODE // 2021.01.20 @ 14:27:38 Player: blelm Result: Destroyed by D-53 Grenadier with Mini Grenade Launcher Performance ------------- Evolutions (0) 0 Regions Visited (2) 400 Robots Destroyed (16) 80 Value Destroyed (206) 206 Prototype IDs (0) 0 Alien Tech Used (0) 0 Bonus (0) 0 TOTAL SCORE: 686 Bonus ------- None Cogmind --------- Core Integrity 0/250 Matter 285/300 Energy 85/100 System Corruption 10% Temperature Cool (0) Movement Treading (180) Ox1 Location -10/Mines Parts ------- > --- POWER (1) -------- (None) > --- PROPULSION (2) --- Light Treads > --- UTILITY (2) ------ Large Storage Unit Large Storage Unit > --- WEAPON (2) ------- (None) > --- INVENTORY (16) --- Light Ion Engine Light Treads Light Treads Light Treads Aluminum Leg Aluminum Leg Medium Storage Unit Propulsion Shielding EM Pulse Gun EM Pulse Gun Medium Laser Light Assault Rifle Rocket Launcher Mining Laser Peak State ------------ > --- POWER ------------ Light Ion Engine > --- PROPULSION ------- Light Treads Light Treads > --- UTILITY ---------- Large Storage Unit Large Storage Unit > --- WEAPON ----------- EM Pulse Gun Light Assault Rifle > --- INVENTORY -------- Light Ion Engine Light Treads Light Treads Aluminum Leg Aluminum Leg Compact Wheel Medium Storage Unit Propulsion Shielding Medium Laser Grenade Launcher [Rating: 8] Favorites ----------- Power Light Ion Engine Engine Light Ion Engine Propulsion Light Treads Treads Light Treads Leg Aluminum Leg Wheel Compact Wheel Utility Large Storage Unit Storage Large Storage Unit Weapon Light Assault Rifle Energy Gun EM Pulse Gun Ballistic Gun Light Assault Rifle Launcher Grenade Launcher Build | -11 -10 -10 ------- Run | Scr Mat Min Slots Evolved . | . . . Power . | . . . Propulsion . | . . . Utility . | . . . Weapon . | . . . Parts Attached 9 | 3 2 4 Power 1 | . . 1 Engine 1 | . . 1 Core . | . . . Reactor . | . . . Propulsion 4 | 2 . 2 Treads 3 | 2 . 1 Leg . | . . . Wheel 1 | . . 1 Hover . | . . . Flight . | . . . Utility 3 | 1 2 . Device . | . . . Storage 3 | 1 2 . Processor . | . . . Hackware . | . . . Protection . | . . . Artifact . | . . . Weapon 1 | . . 1 Energy Gun . | . . . Energy Cannon . | . . . Ballistic Gun . | . . . Ballistic Cannon . | . . . Launcher 1 | . . 1 Special Weapon . | . . . Impact Weapon . | . . . Slashing Weapon . | . . . Piercing Weapon . | . . . Special Melee Weapon . | . . . Unidentified Prototypes . | . . . Parts Lost 5 | . . 5 Power 1 | . . 1 Propulsion 2 | . . 2 Utility . | . . . Weapon 2 | . . 2 Highest Loss Streak 5 | . . 5 Average Slot Usage (%) 98 | . 100 97 Engine 13 | . 14 13 Treads 26 | . 28 25 Wheel 1 | . . 1 Storage 28 | . 28 28 Energy Gun 5 | . 14 . Ballistic Gun 13 | . 14 13 Launcher 7 | . . 12 Naked Turns . | . . . Heaviest Build 41 | 14 38 41 Greatest Support 40 | 40 40 40 Greatest Overweight (x) 2 | . . 2 Average Overweight (x) . | . . . Largest Inventory Capacity 16 | 8 16 16 Average Capacity 14 | 7 15 16 Most Carried 15 | 6 13 15 Average Carried 11 | 6 10 14 Final Capacity 16 | 8 16 16 Final Carried 14 | 6 13 14 Class Distribution -------------------- 100% | Mutant Dominant Class ---------------- Mutant | -10/Materials Mutant | -10/Mines Resources | -11 -10 -10 ----------- Run | Scr Mat Min Matter Collected 327 | 238 39 50 Remotely . | . . . Salvage Created 464 | 198 167 99 Parts 39 | 12 18 9 Haulers Intercepted 1 | . 1 . Recyclers Shooed 1 | . 1 . Parts Field Recycled . | . . . Retrieved Matter . | . . . Parts Self-Destructed . | . . . Prevented . | . . . Kills | -11 -10 -10 ------- Run | Scr Mat Min Combat Hostiles Destroyed 8 | . 3 5 Guns 3 | . 3 . AOE 5 | . . 5 Classes Destroyed 8 | 2 4 2 Builder 2 | . 1 1 Tunneler 5 | 4 . 1 Hauler 1 | . 1 . Recycler 1 | 1 . . Watcher 2 | . 2 . Swarmer 3 | . 3 . Grunt 2 | . . 2 Assembled 3 | . . 3 Best Kill Streak 4 | 4 3 4 Combat Bots Only 3 | . 3 3 Max Kills in Single Turn 3 | 1 1 3 Gunslinging . | . . . Exploded 3 | . . 3 Melee . | . . . Uniques/NPCs Destroyed . | . . . Combat | -11 -10 -10 -------- Run | Scr Mat Min Damage Taken 794 | . 27 767 Core 258 | . 6 252 Absorbed by Shields . | . . . Core Remaining (%) 100 | 100 . . Volleys Fired 37 | 13 19 5 Largest 2 | 2 2 1 Hottest 60 | 60 60 30 Shots Fired 69 | 26 38 5 Gun 64 | 26 38 . Cannon . | . . . Launcher 5 | . . 5 Special . | . . . Kinetic 32 | 13 19 . Thermal . | . . . Explosive 5 | . . 5 Electromagnetic 32 | 13 19 . Robot Hit Streak 9 | 9 3 2 Robot Miss Streak 4 | 2 4 2 Penetration Max . | . . . Secondary Targets . | . . . Shots Hit Robots 35 | 19 14 2 Core Hits 28 | 6 9 13 Critical Hits . | . . . Critical Kills . | . . . Critical Parts Destroyed . | . . . Melee Attacks . | . . . Impact . | . . . Slashing . | . . . Piercing . | . . . Sneak Attacks . | . . . Combat Hostiles . | . . . Follow-up Attacks . | . . . Damage Inflicted 923 | 269 240 414 Guns 445 | 248 197 . Cannons . | . . . Explosions 452 | . 40 412 Melee . | . . . Ramming 26 | 21 3 2 Kinetic 125 | 76 49 . Thermal 40 | . 40 . Explosive 412 | . . 412 Electromagnetic 320 | 172 148 . Impact . | . . . Slashing . | . . . Piercing . | . . . Highest Corruption 10 | . . 10 Average Corruption 6 | . . 6 Corruption Purged . | . . . Effects 1 | . . 1 Message Errors 1 | . . 1 Overload Shots . | . . . Overflow Damage 2 | . . 2 Projectiles . | . . . Explosions 2 | . . 2 Melee . | . . . Knockbacks . | . . . Impact . | . . . Kinetic . | . . . Secondary . | . . . Self-Inflicted Damage 82 | . . 82 Shots 3 | . . 3 Rammed 9 | 6 2 1 Targets Rammed 9 | 6 2 1 Kicked . | . . . Crushed . | . . . Highest Temperature 40 | 40 40 . Average Temperature 16 | 16 16 . Received Heat Transfer 53 | . . 53 Siege Activations . | . . . Robots Corrupted . | . . . Combat Hostiles . | . . . Parts Fried 3 | 1 2 . Impact Corruptions . | . . . Robots Melted . | . . . Combat Hostiles . | . . . Parts Melted . | . . . Heat Transferred 50 | . 50 . Parts Sabotaged . | . . . Parts Stolen . | . . . Parts Stripped . | . . . Power Chain Reactions 1 | . 1 . Missiles Intercepted . | . . . Alert | -11 -10 -10 ------- Run | Scr Mat Min Peak Influence 176 | 25 176 128 Initial 68 | . 16 68 Average 82 | 8 80 103 Maximum Alert Level . | . . . Low Security (%) 100 | 100 100 100 Level 1 . | . . . Level 2 . | . . . Level 3 . | . . . Level 4 . | . . . Level 5 . | . . . High Security . | . . . Max Security . | . . . Squads Dispatched . | . . . Investigation . | . . . Extermination . | . . . Reinforcement . | . . . Assault . | . . . Garrison . | . . . Intercept . | . . . Construction Impeded . | . . . Haulers Reinforced . | . . . Stealth | -11 -10 -10 --------- Run | Scr Mat Min Distress Signals 1 | . 1 . Communications Jammed . | . . . Distress Signals . | . . . Times Spotted 28 | . 7 21 Peak Tracking Total 16 | . 4 16 Tactical Retreats 2 | . . 2 Traps | -11 -10 -10 ------- Run | Scr Mat Min Traps Triggered . | . . . Indirectly . | . . . Trap Hack Attempts . | . . . Triggered . | . . . Disarmed . | . . . Reprogrammed . | . . . Reused . | . . . Traps Extracted . | . . . Installed . | . . . Triggered . | . . . Machines | -11 -10 -10 ---------- Run | Scr Mat Min Machines Disabled 1 | . 1 . Max in Single Turn 1 | . 1 . Machines Sabotaged . | . . . Garrisons Compromised . | . . . Overloaded Fab Kills . | . . . Fab Network Shutdowns . | . . . Hacking | -11 -10 -10 --------- Run | Scr Mat Min Machines Accessed 1 | . 1 . Terminals 1 | . 1 . Fabricators . | . . . Repair Stations . | . . . Recycling Units . | . . . Scanalyzers . | . . . Garrison Access . | . . . Total Hacks 2 | . 2 . Successful 1 | . 1 . Failed 1 | . 1 . Catastrophic 1 | . 1 . Database Lockouts . | . . . Manual 1 | . 1 . Terminals 2 | . 2 . Fabricators . | . . . Repair Stations . | . . . Recycling Units . | . . . Scanalyzers . | . . . Garrison Access . | . . . Terminal Hacks 1 | . 1 . Locate Traps 1 | . 1 . Fabricator Hacks . | . . . Repair Station Hacks . | . . . Recycling Unit Hacks . | . . . Scanalyzer . | . . . Garrison Access Hacks . | . . . Unauthorized Hacks . | . . . Terminals . | . . . Fabricators . | . . . Repair Stations . | . . . Recycling Units . | . . . Scanalyzers . | . . . Garrison Access . | . . . Data Cores Recovered . | . . . Used . | . . . Hacking Detections 1 | . 1 . Full Trace Events . | . . . Feedback Events . | . . . Feedback Blocked . | . . . Robot Schematics Acquired . | . . . Robots Built . | . . . Matter . | . . . Time . | . . . Total Robot Build Rating . | . . . Part Schematics Acquired . | . . . Parts Built . | . . . Matter . | . . . Time . | . . . Total Part Build Rating . | . . . Parts Repaired . | . . . Time . | . . . Parts Recycled . | . . . Recycled Matter . | . . . Retrieved Matter . | . . . Retrieved Components . | . . . Parts Scanalyzed . | . . . Part Schematics Acquired . | . . . Parts Damaged . | . . . Bothacking | -11 -10 -10 ------------ Run | Scr Mat Min Used RIF Installer . | . . . Robots Hacked . | . . . Non-combat . | . . . Combat . | . . . Robot Hacks Applied . | . . . Relay Couplers Released . | . . . Robots Rewired . | . . . Allies Hacked . | . . . Hacks Repelled . | . . . Allies | -11 -10 -10 -------- Run | Scr Mat Min Total Allies . | . . . Largest Group . | . . . Highest-Rated Group . | . . . Highest-Rated Ally . | . . . Total Orders . | . . . Ally Attacks . | . . . Total Damage . | . . . Kills . | . . . Allies Corrupted . | . . . Allies Melted . | . . . Intel | -11 -10 -10 ------- Run | Scr Mat Min Robot Analysis Total . | . . . Derelict Logs Recovered 2 | . . 2 Drone Launches . | . . . Drone Recoveries . | . . . Exploration | -11 -10 -10 ------------- Run | Scr Mat Min Turns Passed 923 | 121 321 481 Spaces Moved 490 | 45 156 289 Core . | . . . Treads 448 | 45 156 247 Legs . | . . . Wheels 42 | . . 42 Hover . | . . . Flight . | . . . Fastest Speed 110 | 160 160 110 Average Speed 159 | 160 160 159 Slowest Speed 180 | 160 160 180 Overloaded Moves . | . . . Propulsion Burnouts . | . . . Robots Hopped . | . . . Cave-ins Triggered . | . . . Exploration Rate (%) 36 | 4 28 77 Regions Visited 2 Branch Regions 1 Pre-discovered Areas . | . . . Known Exits Taken . | . . . Unknown Exits Taken 2 | 1 1 . Scrap Searched 2 | . . 2 Spaces Dug 16 | . . 16 Terrain Destroyed 45 | . 4 41 Melee . | . . . Projectile . | . . . AOE 45 | . 4 41 Terrain Rammed . | . . . Walls Destroyed . | . . . Machines Disabled . | . . . Actions | -11 -10 -10 --------- Run | Scr Mat Min Total 562 | 66 194 302 Wait 5 | . 5 . Move 488 | 44 155 289 Hop . | . . . Pick Up 10 | . 8 2 Fast Attach 2 | 1 . 1 Attach 1 | . . 1 Detach . | . . . Swap 6 | 2 2 2 Drop 4 | . 3 1 Fire 37 | 13 19 5 Melee . | . . . Ram . | . . . Kick . | . . . Crush 9 | 6 2 1 Escape Stasis . | . . . Rewire . | . . . Trap . | . . . Miscellaneous . | . . . Route ------- -11/Scrapyard -10/Materials -10/Mines (discovered 2 exits: [*Mat x2]) History --------- Turn | Location | Event 4 | -11/Scrapyard | Discovered new exit (range 3) 122 | -11/Scrapyard | Entered Materials 314 | -10/Materials | Build established: Mutant 383 | -10/Materials | Discovered new exit (range 16) 443 | -10/Materials | Entered Mines 512 | -10/Mines | Discovered new exit (range 5) 600 | -10/Mines | Received a Rocket Launcher from a helpful Derelict 688 | -10/Mines | Learned 8 Materials zone layouts 703 | -10/Mines | Discovered new exit (range 9) 864 | -10/Mines | Assembled infested the area 909 | -10/Mines | System corruption reached 10% 920 | -10/Mines | Core integrity fell below 50% 921 | -10/Mines | Core integrity fell below 20% 924 | -10/Mines | Destroyed by D-53 Grenadier with Mini Grenade Launcher Last Messages --------------- 00877_ as-07075 destroyed. 00877_ as-73349 destroyed. 00877_ Destroyed Asb. Hover Unit. 00878_ Grenade Launcher destroyed. 00878_ System corrupted by crushing effect (+5). 00889_ as-48828 sneak attacks. 00889_ U-05 Engineer system corrupted by crushing effect. 00889_ U-05 Engineer knocked back. 00890_ U-05 Engineer system terminally corrupted. 00892_ Z<:A> W983GKHVN,N FBWGVSZPXNMNHEA 00895_ Knocked back. 00896_ U-05 Engineer destroyed. 00908_ Lgt. Assault Rifle destroyed. 00908_ System corrupted by crushing effect (+5). 00916_ Ion Engine destroyed. 00918_ Lgt. Treads destroyed. 00918_ Seismic Survey Station disabled. 00921_ The unstable cave ceiling collapses. 00922_ G-34 Mercenary destroyed. 00922_ Com. Wheel destroyed. Map ----- +----------------------------------------------------+ | #???????????????????????## ???????????????????? | | ######??????????????????? ???????????????????? | | #????????#####?????? ???????????????????? | | #### #???????## ##?????? ???????????????????? | | #??# #??????## ##????? #???????????????????? | | #??# #???## # #?##### #???????????????????? | | #?## ##?## """ ## ## #???????????????????? | | ### # # " ## ##??????????????????? | | ## "% % #??????????????????? | | % #####???????????????? | | #### ##??????????????? | | # ##??? # ##?????????????? | | ! # #????##### #?????????????? | | ###%=## ##??????## #?????????????? | | #####?# ##????? #?????????????? | | ##?????# #????? #?????????????? | | ##??????##### #???## ?? ??????????????? | | ####???????????## ##???# ##?????????????????? | | ????????????????## #??### ??????????????????? | | ?????????????????# #### ???????????????????? | | ?????????????????# #???????????????????? | | ?????????????##### #### #???????????????????? | | ??????????#### # #?# [ ##???????????????????? | | ????????? r ### = #???????????????????? | | ????????#???# dd ##??????????????????? | | ??????? #????# "" g @ #??????????????????? | | ??????? ##???# " ##??????????????????? | | ??????# ##??# " #???????????????????? | | ?????# ##?## #???????????????????? | | ????? ##?## #???????????????????? | | ???## #### ###???????????????????? | | #### ### #?????????????????????? | | ## # ##?????????????????????? | | # ##??????????????????????? | | ## #???????????????????????? | | ## ##???????????????????????? | | # #?#### ##????????????????????????? | | ## #????####?????????????????????????? | | ?## ##????????????????????????????????? | | ??# ##?????????????? ?????????????? | | ??# ##???????????? ?????????????? | | ?## #?????????? ????????????? | | ?# #?#####??# #?????????????? | | ?## ### ## #?????????????? | | ??#### ! ## ### #????????????? | | ##???## %= ### #????????????? | | ##?#### # #### #????????????? | | ? ## | #???????????? | | #?# ## * ????????????? | | #?# ### ##### ## ### #????????????? | +----------------------------------------------------+ Best States ------------- Heat Dissipation 25 Energy Generation 10 Energy Capacity 250 Matter Stores 300 Matter Capacity 300 Sight Range 16 Terrain Scan Density 10 Evasion (%) 40 Recoil Reduction 2 Item Schematics ----------------- None Robot Schematics ------------------ None Fabricated ------------ Nothing Alien Tech Used ----------------- None Achievements -------------- None Challenges ------------ None Game ------ Seed FlyingLayeredBeam Manual? 0 Play Time 00:07:02 Cumulative 307.9 hours Start 2021.01.20 @ 14:10:24 End 2021.01.20 @ 14:27:38 Sessions 1 Manual Loads 0 Difficulty Rogue Special Mode None Game No. 164 Rogue 164 Adventurer 0 Explorer 0 Win Type - Total 8 Types 1/5/0/0/0/0/2/0/0 Lore% 84 Gallery% 86 Achievement% 68 Wizard Run 0 Options --------- ASCII 1 Keyboard 1 Movement Vi Keybinds 0 Fullscreen 1 Font 16/Terminus Map View 75x55 Tactical HUD 1 Map Filters NONE Filters NONE Steam 1 RUN: ab83a22e-347f-4e0c-8209-83618a73e2af